fUSD/lending_fUSD_20260111
["ID","MTS","AMOUNT","RATE_DAILY","PERIOD"]
[401273637,1768089601523,300.0,0.00014146,2]
[401273638,1768089603005,150.0,0.00014146,2]
[401273639,1768089603709,326.20854862,0.00012951,2]
[401273640,1768089603796,267.0,0.00014147,2]
[401273641,1768089608378,1976.450204,7.945e-05,2]
[401273642,1768089639882,542.77065189,0.00014146,2]
[401273643,1768089639923,163.87946355,0.00014146,2]
[401273644,1768089639964,294.98285029,0.00014146,2]
[401273645,1768089640002,303.89489054,0.00014146,2]
[401273646,1768089640044,299.12787591,0.00014146,2]
[401273647,1768089640069,200.87212409,0.00014146,2]
[401273648,1768089640501,500.0,0.00014146,2]
[401273649,1768089640556,500.0,0.00014146,2]
[401273650,1768089640611,500.0,0.00014146,2]
[401273651,1768089640664,187.44697681,0.00014146,2]
[401273652,1768089640715,500.0,0.00014146,2]
[401273653,1768089640773,500.0,0.00014146,2]
[401273654,1768089640841,500.0,0.00014146,2]
[401273655,1768089640909,500.0,0.00014146,2]
[401273656,1768089640971,500.0,0.00014146,2]
[401273657,1768089641032,500.0,0.00014146,2]
[401273658,1768089641090,500.0,0.00014146,2]
[401273659,1768089641154,500.0,0.00014146,2]
[401273660,1768089641202,500.0,0.00014146,2]
[401273661,1768089641254,500.0,0.00014146,2]
[401273662,1768089641308,500.0,0.00014146,2]
[401273663,1768089641357,500.0,0.00014146,2]
[401273664,1768089641410,500.0,0.00014146,2]
[401273665,1768089641466,500.0,0.00014146,2]
[401273666,1768089641512,500.0,0.00014146,2]
[401273667,1768089641556,500.0,0.00014146,2]
[401273668,1768089641606,111.6908991,0.00014146,2]
[401273669,1768089641636,388.3091009,0.00014146,2]
[401273670,1768089641688,500.0,0.00014146,2]
[401273671,1768089641738,500.0,0.00014146,2]
[401273672,1768089641786,500.0,0.00014146,2]
[401273673,1768089641836,500.0,0.00014146,2]
[401273674,1768089641882,500.0,0.00014146,2]
[401273675,1768089641948,500.0,0.00014146,2]
[401273676,1768089641998,500.0,0.00014146,2]
[401273677,1768089642055,500.0,0.00014146,2]
[401273678,1768089642107,500.0,0.00014146,2]
[401273679,1768089642151,500.0,0.00014146,2]
[401273680,1768089642203,500.0,0.00014146,2]
[401273681,1768089642248,500.0,0.00014146,2]
[401273682,1768089642302,500.0,0.00014146,2]
[401273683,1768089642356,500.0,0.00014146,2]
[401273684,1768089642401,500.0,0.00014146,2]
[401273685,1768089664549,299.43963845,0.00014146,2]
[401273686,1768089664697,151.0,0.00014146,2]
[401273687,1768089681824,948.78752615,0.00014146,2]
[401273688,1768089681873,712.4737345,0.00014146,2]
[401273689,1768089681903,236.31379165,0.00014146,2]
[401273690,1768089681945,948.78752615,0.00014146,2]
[401273691,1768089681988,948.78752615,0.00014146,2]
[401273692,1768089682031,948.78752615,0.00014146,2]
[401273693,1768089682076,948.78752615,0.00014146,2]
[401273694,1768089682120,948.78752615,0.00014146,2]
[401273695,1768089682165,948.78752615,0.00014146,2]
[401273696,1768089682208,948.78752615,0.00014146,2]
[401273697,1768089682255,948.78752615,0.00014146,2]
[401273698,1768089682303,948.78752615,0.00014146,2]
[401273699,1768089682348,948.78752615,0.00014146,2]
[401273700,1768089682391,275.82094685,0.00014146,2]
[401273701,1768089682421,672.9665793,0.00014146,2]
[401273702,1768089682469,948.78752615,0.00014146,2]
[401273703,1768089682512,948.78752615,0.00014146,2]
[401273704,1768089682558,948.78752615,0.00014146,2]
[401273705,1768089682602,948.78752615,0.00014146,2]
[401273706,1768089682654,948.78752615,0.00014146,2]
[401273707,1768089682696,948.78752615,0.00014146,2]
[401273708,1768089682744,948.78752615,0.00014146,2]
[401273709,1768089682787,948.78752615,0.00014146,2]
[401273710,1768089682831,948.78752615,0.00014146,2]
[401273711,1768089682875,787.95568535,0.00014146,2]
[401273712,1768089682905,160.8318408,0.00014146,2]
[401273713,1768089682948,948.78752615,0.00014146,2]
[401273714,1768089682994,948.78752615,0.00014146,2]
[401273715,1768089683039,948.78752615,0.00014146,2]
[401273716,1768089683088,948.78752615,0.00014146,2]
[401273717,1768089683131,948.78752615,0.00014146,2]
[401273718,1768089683174,948.78752615,0.00014146,2]
[401273719,1768089683220,948.78752615,0.00014146,2]
[401273720,1768089683263,948.78752615,0.00014146,2]
[401273721,1768089683310,948.78752615,0.00014146,2]
[401273722,1768089683383,948.78752615,0.00014146,2]
[401273723,1768089683429,351.3028977,0.00014146,2]
[401273724,1768089683460,597.48462845,0.00014146,2]
[401273725,1768089683504,948.78752615,0.00014146,2]
[401273726,1768089683549,948.78752615,0.00014146,2]
[401273727,1768089683593,948.78752615,0.00014146,2]
[401273728,1768089683659,948.78752615,0.00014146,2]
[401273729,1768089683715,948.78752615,0.00014146,2]
[401273730,1768089683768,948.78752615,0.00014146,2]
[401273731,1768089683822,948.78752615,0.00014146,2]
[401273732,1768089683880,948.78752615,0.00014146,2]
[401273733,1768089684259,948.78752615,0.00014146,2]
[401273734,1768089684670,175.18407697,0.00014047,2]
[401273735,1768089689314,175.18407697,0.00014047,2]
[401273736,1768089694301,513.06948226,0.00013864,2]
[401273737,1768089694327,1655.22851774,0.00013864,2]
[401273738,1768089694369,172.61,0.00013864,2]
[401273739,1768089697357,912.956,0.00014047,2]
[401273740,1768089703769,401.7673,0.00014047,2]
[401273741,1768089721214,300.0,0.00014146,2]
[401273742,1768089721250,217.81825009,0.00014047,2]
[401273743,1768089729492,500.0,0.00014147,2]
[401273744,1768089730385,500.0,0.00014147,2]
[401273745,1768089730453,151.0,0.00014147,2]
[401273746,1768089730767,500.0,0.00014147,2]
[401273747,1768089731386,500.0,0.00014147,2]
[401273748,1768089732020,200.0,0.00014147,2]
[401273749,1768089732113,500.0,0.00014147,2]
[401273750,1768089732435,172.22,0.00013552,2]
[401273751,1768089732773,356.67288245,0.00014147,2]
[401273752,1768089736271,200.0,0.00014147,2]
[401273753,1768089738387,205.67940434,0.00014147,2]
[401273754,1768089739375,151.0,0.00014147,2]
[401273755,1768089740006,151.0,0.00014147,2]
[401273756,1768089740834,151.0,0.00014147,2]
[401273757,1768089741242,151.0,0.00014147,2]
[401273758,1768089741761,349.0,0.00014147,2]
[401273759,1768089741840,151.0,0.00014147,2]
[401273760,1768089742429,151.0,0.00014147,2]
[401273761,1768089743035,151.0,0.00014147,2]
[401273762,1768089743672,151.0,0.00014147,2]
[401273763,1768089744291,151.0,0.00014147,2]
[401273764,1768089744897,151.0,0.00014147,2]
[401273765,1768089745517,151.0,0.00014147,2]
[401273766,1768089746131,151.0,0.00014147,2]
[401273767,1768089746756,151.0,0.00014147,2]
[401273768,1768089747446,151.0,0.00014147,2]
[401273769,1768089748067,91.05764538,0.00014147,2]
[401273770,1768089748093,59.94235462,0.00014147,2]
[401273771,1768089748668,151.0,0.00014147,2]
[401273772,1768089749303,151.0,0.00014147,2]
[401273773,1768089749947,151.0,0.00014147,2]
[401273774,1768089750578,151.0,0.00014147,2]
[401273775,1768089751457,151.0,0.00014147,2]
[401273776,1768089751515,151.0,0.00014147,2]
[401273777,1768089758491,500.0,0.00014146,2]
[401273778,1768089758645,500.0,0.00014146,2]
[401273779,1768089758737,500.0,0.00014146,2]
[401273780,1768089758810,500.0,0.00014146,2]
[401273781,1768089758890,500.0,0.00014146,2]
[401273782,1768089758962,500.0,0.00014146,2]
[401273783,1768089759026,500.0,0.00014146,2]
[401273784,1768089759081,500.0,0.00014146,2]
[401273785,1768089759158,500.0,0.00014146,2]
[401273786,1768089759210,500.0,0.00014146,2]
[401273787,1768089759267,500.0,0.00014146,2]
[401273788,1768089759317,500.0,0.00014146,2]
[401273789,1768089759368,500.0,0.00014146,2]
[401273790,1768089759420,500.0,0.00014146,2]
[401273791,1768089759476,500.0,0.00014146,2]
[401273792,1768089759527,500.0,0.00014146,2]
[401273793,1768089759590,500.0,0.00014146,2]
[401273794,1768089759662,500.0,0.00014146,2]
[401273795,1768089759709,34.06764538,0.00014146,2]
[401273796,1768089759739,465.93235462,0.00014146,2]
[401273797,1768089759779,151.0,0.00014147,2]
[401273798,1768089759828,500.0,0.00014146,2]
[401273799,1768089759878,500.0,0.00014146,2]
[401273800,1768089759924,500.0,0.00014146,2]
[401273801,1768089759973,500.0,0.00014146,2]
[401273802,1768089760030,500.0,0.00014146,2]
[401273803,1768089760078,500.0,0.00014146,2]
[401273804,1768089760124,500.0,0.00014146,2]
[401273805,1768089760452,500.0,0.00014146,2]
[401273806,1768089760501,500.0,0.00014146,2]
[401273807,1768089760552,500.0,0.00014146,2]
[401273808,1768089760600,500.0,0.00014146,2]
[401273809,1768089760648,500.0,0.00014146,2]
[401273810,1768089760694,500.0,0.00014146,2]
[401273811,1768089760736,151.0,0.00014147,2]
[401273812,1768089760778,438.42307683,0.00014146,2]
[401273813,1768089760833,500.0,0.00014146,2]
[401273814,1768089760875,500.0,0.00014146,2]
[401273815,1768089760919,500.0,0.00014146,2]
[401273816,1768089760964,500.0,0.00014146,2]
[401273817,1768089761010,293.65456855,0.00014146,2]
[401273818,1768089761043,206.34543145,0.00014146,2]
[401273819,1768089761084,500.0,0.00014146,2]
[401273820,1768089761126,500.0,0.00014146,2]
[401273821,1768089761162,151.0,0.00014147,2]
[401273822,1768089761430,151.0,0.00014147,2]
[401273823,1768089762332,151.0,0.00014147,2]
[401273824,1768089762846,151.0,0.00014147,2]
[401273825,1768089763597,151.0,0.00014147,2]
[401273826,1768089764221,151.0,0.00014147,2]
[401273827,1768089764834,151.0,0.00014147,2]
[401273828,1768089782024,150.0,0.00014146,2]
[401273829,1768089796170,599.0,0.00014146,2]
[401273830,1768089797976,500.0,0.00014047,2]
[401273831,1768089805077,175.18407693,0.00014047,2]
[401273832,1768089834706,3901.68004068,0.00014047,2]
[401273833,1768089886105,2410.80045094,0.00014047,2]
[401273834,1768089886131,3673.20774727,0.00014047,2]
[401273835,1768089901175,300.0,0.00014146,2]
[401273836,1768089901213,1200.0,0.00014146,2]
[401273837,1768089914308,2858.9006,0.00014047,2]
[401273838,1768089926944,273.1107,0.00014047,2]
[401273839,1768089949444,500.0,0.00014146,2]
[401273840,1768089959111,175.18407692,0.00014047,2]
[401273841,1768089961802,150.0,0.00014146,2]
[401273842,1768089966105,151.0,0.00014147,2]
[401273843,1768089966333,151.0,0.00014147,2]
[401273844,1768089970856,175.18407692,0.00014047,2]
[401273845,1768090003436,2500.0,0.00014047,2]
[401273846,1768090026262,151.0,0.00014147,2]
[401273847,1768090026867,151.0,0.00014147,2]
[401273848,1768090027572,151.0,0.00014147,2]
[401273849,1768090028188,151.0,0.00014147,2]
[401273850,1768090028863,151.0,0.00014147,2]
[401273851,1768090029486,151.0,0.00014147,2]
[401273852,1768090030119,151.0,0.00014147,2]
[401273853,1768090030744,151.0,0.00014147,2]
[401273854,1768090030942,357.3108574,0.00014047,2]
[401273855,1768090031420,151.0,0.00014147,2]
[401273856,1768090031669,151.0,0.00014147,2]
[401273857,1768090032028,151.0,0.00014147,2]
[401273858,1768090032303,151.0,0.00014147,2]
[401273859,1768090032655,151.0,0.00014147,2]
[401273860,1768090032901,151.0,0.00014147,2]
[401273861,1768090033264,151.0,0.00014147,2]
[401273862,1768090033519,151.0,0.00014147,2]
[401273863,1768090033893,151.0,0.00014147,2]
[401273864,1768090034647,151.0,0.00014147,2]
[401273865,1768090036007,151.0,0.00014147,2]
[401273866,1768090036060,151.0,0.00014147,2]
[401273867,1768090036164,151.0,0.00014147,2]
[401273868,1768090036266,151.0,0.00014147,2]
[401273869,1768090036348,151.0,0.00014147,2]
[401273870,1768090036519,151.0,0.00014147,2]
[401273871,1768090036789,151.0,0.00014147,2]
[401273872,1768090037113,151.0,0.00014147,2]
[401273873,1768090037395,151.0,0.00014147,2]
[401273874,1768090037713,151.0,0.00014147,2]
[401273875,1768090038503,266.83013068,0.00014147,2]
[401273876,1768090039173,200.0,0.00014147,2]
[401273877,1768090041988,500.0,0.00014146,2]
[401273878,1768090042211,500.0,0.00014146,2]
[401273879,1768090042497,500.0,0.00014146,2]
[401273880,1768090052070,151.0,0.00014147,2]
[401273881,1768090064759,-920.0,0.00014147,2]
[401273882,1768090097547,621.684935,0.00014047,2]
[401273883,1768090097578,10000.01,0.00014047,2]
[401273884,1768090097609,10000.01,0.00014047,2]
[401273885,1768090097640,10000.01,0.00014047,2]
[401273886,1768090097670,10000.01,0.00014047,2]
[401273887,1768090097700,10000.01,0.00014047,2]
[401273888,1768090097733,10000.01,0.00014047,2]
[401273889,1768090097764,10000.01,0.00014047,2]
[401273890,1768090097795,10000.01,0.00014047,2]
[401273891,1768090097826,10000.01,0.00014047,2]
[401273892,1768090098416,-407.16324427,0.00014047,2]
[401273893,1768090103189,-163.64093635,0.00014047,2]
[401273894,1768090107556,-184.29119384,0.00014047,2]
[401273895,1768090109071,-203.09776476,0.00014047,2]
[401273896,1768090111248,-241.81785238,0.00014047,2]
[401273897,1768090112756,-300.0,0.00014047,2]
[401273898,1768090114227,-561.36394466,0.00014047,2]
[401273899,1768090115695,-263.10583184,0.00014047,2]
[401273900,1768090117289,-564.27800852,0.00014047,2]
[401273901,1768090122188,-156.21597287,0.00014047,2]
[401273902,1768090124217,-240.32618978,0.00014047,2]
[401273903,1768090126802,-472.05847415,0.00014047,2]
[401273904,1768090128842,-328.03260426,0.00014047,2]
[401273905,1768090131639,-358.93138377,0.00014047,2]
[401273906,1768090134591,-252.177763,0.00014047,2]
[401273907,1768090135676,-163.43658367,0.00014047,2]
[401273908,1768090139423,-341.29029932,0.00014047,2]
[401273909,1768090140969,-157.86783079,0.00014047,2]
[401273910,1768090144676,-300.0,0.00014046,2]
[401273911,1768090144707,-150.0,0.00014046,2]
[401273912,1768090156305,-191.50050413,0.00014046,2]
[401273913,1768090156337,-191.50050413,0.00014047,2]
[401273914,1768090197181,199.88185726,0.00014046,2]
[401273915,1768090201142,300.0,0.00014046,2]
[401273916,1768090201181,300.0,0.00014046,2]
[401273917,1768090201219,1200.0,0.00014046,2]
[401273918,1768090203960,266.0,0.00014047,2]
[401273919,1768090215981,4280.56502844,0.00014,2]
[401273921,1768090232180,-18261.90801272,0.00014047,2]
[401273922,1768090232192,-40220.25979477,0.00014047,2]
[401273923,1768090232226,-5483.08905717,0.00014047,2]
[401273924,1768090232368,-1686.79317976,0.00014047,2]
[401273925,1768090232379,-34389.09835446,0.00014047,2]
[401273926,1768090232393,-8188.94331907,0.00014047,2]
[401273927,1768090232404,-2929.71303019,0.00014047,2]
[401273929,1768090232415,-1247.39962148,0.00014047,2]
[401273938,1768090238506,-131.7999999,0.00014047,2]
[401273986,1768090240513,-949.309992,0.00014047,2]
[401273987,1768090240525,-1059.80161734,0.00014047,2]
[401273988,1768090240538,-7596.3474717,0.00014047,2]
[401273989,1768090240559,-1517.46946338,0.00014047,2]
[401273990,1768090240571,-263.44827375,0.00014047,2]
[401273991,1768090240706,-67663.14935514,0.00014047,2]
[401273999,1768090241428,-1.7e-07,0.00014047,2]
[401274000,1768090241443,-94185.45144845,0.00014047,2]
[401274005,1768090244384,-1734.89707331,0.00014047,2]
[401274006,1768090244427,-378.13535861,0.00014047,2]
[401274007,1768090246258,-616132.1147634,0.00014047,2]
[401274008,1768090246271,-300.0,0.00014097,2]
[401274009,1768090246280,-300.0,0.00014132,2]
[401274010,1768090246290,-327.36851874,0.00014146,2]
[401274011,1768090246301,-500.0,0.00014146,2]
[401274012,1768090246310,-500.0,0.00014146,2]
[401274013,1768090246320,-500.0,0.00014146,2]
[401274014,1768090246330,-500.0,0.00014146,2]
[401274015,1768090246340,-500.0,0.00014146,2]
[401274016,1768090246350,-515.32073646,0.00014146,2]
[401274017,1768090246360,-1000.0,0.00014147,2]
[401274018,1768090246370,-5981.0887,0.00014147,2]
[401274019,1768090246379,-500.0,0.00014147,2]
[401274020,1768090246390,-500.0,0.00014147,2]
[401274021,1768090246400,-500.0,0.00014147,2]
[401274022,1768090246409,-152.749577,0.00014147,2]
[401274023,1768090246419,-193.0,0.00014155,2]
[401274024,1768090246429,-300.0,0.00014163,2]
[401274025,1768090246438,-302.33857604,0.00014179,2]
[401274026,1768090246447,-195.0,0.0001421,2]
[401274027,1768090246456,-4304.92943194,0.000144,2]
[401274028,1768090246466,-1015.15258093,0.00014715,2]
[401274029,1768090246476,-3180.75325131,0.00014715,2]
[401274030,1768090246485,-255.0,0.0001517,2]
[401274031,1768090246495,-500.0,0.00015173,2]
[401274032,1768090246504,-500.0,0.00015173,2]
[401274033,1768090246516,-500.0,0.00015173,2]
[401274034,1768090246525,-500.0,0.00015173,2]
[401274035,1768090246535,-500.0,0.00015173,2]
[401274036,1768090246544,-500.0,0.00015173,2]
[401274037,1768090246554,-470.36063607,0.00015173,2]
[401274038,1768090246565,-500.0,0.00015173,2]
[401274039,1768090246576,-165.75995313,0.00015173,2]
[401274040,1768090246587,-500.0,0.00015173,2]
[401274041,1768090246596,-500.0,0.00015173,2]
[401274042,1768090246607,-403.01772086,0.00015173,2]
[401274043,1768090246616,-502.72217232,0.00015173,2]
[401274044,1768090246626,-500.0,0.00015173,2]
[401274045,1768090246636,-500.0,0.00015173,2]
[401274046,1768090246646,-500.0,0.00015173,2]
[401274047,1768090246655,-543.38282097,0.00015173,2]
[401274048,1768090246665,-500.0,0.00015173,2]
[401274049,1768090246674,-500.0,0.00015173,2]
[401274050,1768090246684,-500.0,0.00015173,2]
[401274051,1768090246694,-8728.35,0.00015448,2]
[401274052,1768090246704,-1680.0,0.00015451,2]
[401274054,1768090246714,-250.0,0.00015452,2]
[401274056,1768090246723,-300.0,0.00015452,2]
[401274057,1768090246733,-151.0,0.00015516,2]
[401274058,1768090246742,-195.0,0.00015562,2]
[401274059,1768090246752,-300.0,0.00015562,2]
[401274060,1768090246762,-300.0,0.00015562,2]
[401274061,1768090246771,-150.0,0.00015562,2]
[401274062,1768090246781,-195.0,0.00015562,2]
[401274063,1768090246790,-193.0,0.00015562,2]
[401274064,1768090246801,-250.0,0.00015562,2]
[401274065,1768090246810,-280.91669828,0.00015562,2]
[401274066,1768090246819,-500.0,0.00015562,2]
[401274067,1768090246829,-500.0,0.00015721,2]
[401274068,1768090246839,-500.0,0.00015721,2]
[401274069,1768090246848,-500.0,0.00015721,2]
[401274070,1768090246857,-1000.0,0.00015721,2]
[401274071,1768090246867,-500.0,0.00015721,2]
[401274072,1768090246876,-500.0,0.00015721,2]
[401274073,1768090246886,-982.69,0.00015738,2]
[401274074,1768090246897,-500.0,0.00015836,2]
[401274075,1768090246906,-2113.75,0.00015898,2]
[401274076,1768090246915,-500.0,0.0001611,2]
[401274077,1768090246924,-709.48,0.0001617,2]
[401274078,1768090246934,-467.59200153,0.000162,5]
[401274079,1768090246944,-1500.0,0.00016268,2]
[401274080,1768090246953,-433.0,0.00016378,2]
[401274081,1768090246963,-500.0,0.00016438,2]
[401274082,1768090247241,-500.0,0.00016438,2]
[401274083,1768090247253,-500.0,0.00016438,2]
[401274084,1768090247264,-262.53021735,0.00016438,2]
[401274085,1768090247274,-500.0,0.00016438,2]
[401274086,1768090247284,-7186.38,0.00016438,2]
[401274087,1768090247294,-150.99,0.00016438,2]
[401274088,1768090247303,-2639.33,0.00016438,2]
[401274089,1768090247314,-19999.99,0.00016438,2]
[401274090,1768090247324,-199.88185724,0.00016525,2]
[401274091,1768090247335,-190.66,0.00016776,2]
[401274092,1768090247345,-999.99,0.00016776,2]
[401274093,1768090247356,-2000.0,0.00016816,2]
[401274094,1768090247366,-200.0,0.0001694,2]
[401274095,1768090247376,-9999.99,0.0001694,2]
[401274096,1768090247388,-5527.66,0.0001694,2]
[401274097,1768090247397,-5907.01,0.0001694,2]
[401274098,1768090247407,-9999.99,0.0001694,2]
[401274099,1768090247417,-172.22,0.0001694,2]
[401274100,1768090247428,-500.0,0.00016975,2]
[401274101,1768090247437,-500.0,0.00016975,2]
[401274102,1768090247448,-999.0,0.00016985,3]
[401274103,1768090247458,-2351.0,0.00016996,2]
[401274104,1768090247468,-1452.78,0.00017039,2]
[401274105,1768090247480,-765.23855617,0.00017132,2]
[401274106,1768090247507,-583.06144383,0.00017132,2]
[401274107,1768090247517,-2500.0,0.00017364,2]
[401274108,1768090247527,-177.9,0.000175,2]
[401274109,1768090247537,-2000.0,0.000175,2]
[401274110,1768090247547,-200.0,0.00017582,2]
[401274111,1768090247556,-736.0,0.00017698,2]
[401274112,1768090247566,-9999.99,0.00017728,2]
[401274113,1768090247576,-2502.08,0.00017728,2]
[401274114,1768090247586,-5443.65,0.00017728,2]
[401274115,1768090247596,-26895.57621128,0.0001783,2]
[401274116,1768090247607,-56234.34215119,0.0001783,2]
[401274117,1768090247616,-422.97195809,0.000179,2]
[401274118,1768090247625,-3000.0,0.00017912,2]
[401274119,1768090247634,-500.0,0.00017982,2]
[401274120,1768090247644,-495.3293447,0.0001799,2]
[401274121,1768090247653,-4777.84305721,0.00018,2]
[401274122,1768090247666,-139561.48775245,0.00018,2]
[401274123,1768090247676,-40891.2019224,0.00018,2]
[401274124,1768090247687,-200.0,0.00018,2]
[401274125,1768090247696,-1357.21,0.00018,7]
[401274126,1768090247706,-191.50050407,0.00018011,2]
[401274127,1768090247716,-365.26,0.00018085,2]
[401274128,1768090247726,-166.66,0.00018237,2]
[401274129,1768090247735,-523.3,0.00018367,2]
[401274130,1768090247745,-500.0,0.00018435,2]
[401274131,1768090247755,-190.66,0.00018453,2]
[401274132,1768090247764,-500.0,0.00018533,2]
[401274133,1768090247774,-157.72323008,0.00018603,2]
[401274134,1768090247784,-166.66,0.00018621,2]
[401274135,1768090247794,-3292.0,0.00018695,2]
[401274136,1768090247803,-5243.0,0.00018949,2]
[401274137,1768090247812,-154.28356495,0.00019,2]
[401274138,1768090247822,-227.24588123,0.00019,2]
[401274139,1768090247831,-300.0,0.00019,2]
[401274140,1768090247841,-8395.87070256,0.00019,2]
[401274141,1768090247851,-199.88185724,0.00019003,2]
[401274142,1768090247861,-166.66,0.00019005,2]
[401274143,1768090247871,-500.0,0.00019073,2]
[401274144,1768090247880,-1500.0,0.00019081,2]
[401274145,1768090247890,-1207.0,0.00019103,2]
[401274146,1768090247900,-1000.0,0.00019174,2]
[401274147,1768090247910,-150.0,0.00019377,2]
[401274148,1768090247920,-166.66,0.00019389,2]
[401274149,1768090247929,-166.66,0.00019773,2]
[401274150,1768090247939,-3468.0,0.00019976,2]
[401274151,1768090247949,-1330.0,0.00019976,2]
[401274152,1768090247958,-1405.0,0.00019976,2]
[401274153,1768090247967,-1266.0,0.00019976,2]
[401274154,1768090247976,-505.0,0.00019976,2]
[401274155,1768090247986,-1201.0,0.00019976,2]
[401274156,1768090247995,-914.0,0.00019976,2]
[401274157,1768090248005,-4820.0,0.00019976,2]
[401274158,1768090248014,-2437.0,0.00019976,2]
[401274159,1768090248024,-6554.0,0.00019976,2]
[401274160,1768090248033,-566.0,0.00019976,2]
[401274161,1768090248042,-230.49938684,0.0002,20]
[401274162,1768090248052,-365.26,0.00020094,2]
[401274163,1768090248063,-190.66,0.00020131,2]
[401274164,1768090248073,-500.0,0.00020131,2]
[401274165,1768090248083,-166.66,0.00020157,2]
[401274166,1768090248093,-250.0,0.0002017,2]
[401274167,1768090248102,-500.0,0.000202,2]
[401274168,1768090248112,-500.0,0.00020201,2]
[401274169,1768090248121,-500.0,0.00020202,2]
[401274170,1768090248130,-499.9999,0.00020203,2]
[401274171,1768090248141,-13937.25,0.0002031,2]
[401274172,1768090248150,-172.22,0.00020328,2]
[401274173,1768090248159,-192.76,0.00020548,2]
[401274174,1768090248169,-4609.0,0.00020565,2]
[401274175,1768090248178,-18372.0,0.00020633,2]
[401274176,1768090248188,-500.0,0.00020841,2]
[401274177,1768090248197,-1000.0,0.00020858,2]
[401274178,1768090248207,-1000.0,0.00020858,2]
[401274179,1768090248218,-1000.0,0.00020858,2]
[401274180,1768090248230,-500.0,0.00020858,2]
[401274181,1768090248241,-1000.0,0.00020858,2]
[401274182,1768090248253,-500.0,0.00020858,2]
[401274183,1768090248273,-1000.0,0.00020858,2]
[401274184,1768090248288,-500.0,0.00020858,2]
[401274185,1768090248300,-500.0,0.00020858,2]
[401274186,1768090248313,-500.0,0.00020858,2]
[401274187,1768090248327,-500.0,0.00020858,2]
[401274188,1768090248339,-500.0,0.00020858,2]
[401274189,1768090248349,-250.0,0.00020858,2]
[401274190,1768090248359,-500.0,0.00020858,2]
[401274191,1768090248370,-250.0,0.00020858,2]
[401274192,1768090248381,-500.0,0.00020858,2]
[401274193,1768090248392,-250.0,0.00020858,2]
[401274194,1768090248404,-250.0,0.00020858,2]
[401274195,1768090248415,-250.0,0.00020858,2]
[401274196,1768090248425,-250.0,0.00020858,2]
[401274197,1768090248436,-250.0,0.00020858,2]
[401274198,1768090248447,-250.0,0.00020858,2]
[401274199,1768090248457,-250.0,0.00020858,2]
[401274200,1768090248467,-250.0,0.00020858,2]
[401274201,1768090248478,-250.0,0.00020858,2]
[401274202,1768090248490,-151.0,0.00020858,2]
[401274203,1768090248498,-998.0,0.00020858,2]
[401274204,1768090248508,-250.0,0.00020858,2]
[401274205,1768090248518,-250.0,0.00020858,2]
[401274206,1768090248528,-250.0,0.00020858,2]